[Event "Titled Tuesday Blitz March 28 Late 2023"]
[White "Pires, Marcos Vinicius Torsani"]
[Black "Koksal, Ege"]
[WhiteFideId "2118939"]
[BlackFideId "6317626"]
[WhiteElo "2273"]
[BlackElo "2226"]
[Result "0-1"]
[Round "08"]
[TimeControl "180+2"]
[Date "2023.03.28"]
[WhiteClock "0:00:04"]
[BlackClock "0:02:08"]

1. d4 {[%clk 0:03:00]}  d5 {[%clk 0:02:59]} 2. Bf4 {[%clk 0:02:58]}  c6 {[%clk 0:02:59]} 3. e3 {[%clk 0:02:57]}  Nf6 {[%clk 0:02:59]} 4. Nf3 {[%clk 0:02:56]}  Bg4 {[%clk 0:02:59]} 5. Be2 {[%clk 0:02:50]}  e6 {[%clk 0:02:59]} 6. h3 {[%clk 0:02:49]}  Bh5 {[%clk 0:02:59]} 7. c4 {[%clk 0:02:50]}  Nbd7 {[%clk 0:02:58]} 8. Nc3 {[%clk 0:02:50]}  Be7 {[%clk 0:02:56]} 9. Qb3 {[%clk 0:02:45]}  Qb6 {[%clk 0:02:56]} 10. c5 {[%clk 0:02:45]}  Qxb3 {[%clk 0:02:56]} 11. axb3 {[%clk 0:02:46]}  Bxf3 {[%clk 0:02:57]} 12. Bxf3 {[%clk 0:02:41]}  a6 {[%clk 0:02:57]} 13. b4 {[%clk 0:02:40]}  Rc8 {[%clk 0:02:54]} 14. O-O {[%clk 0:02:29]}  O-O {[%clk 0:02:47]} 15. Ne2 {[%clk 0:02:09]}  Rfe8 {[%clk 0:02:45]} 16. Nc1 {[%clk 0:02:08]}  Bd8 {[%clk 0:02:46]} 17. Nb3 {[%clk 0:02:03]}  Bc7 {[%clk 0:02:45]} 18. Bxc7 {[%clk 0:01:57]}  Rxc7 {[%clk 0:02:46]} 19. Na5 {[%clk 0:01:57]}  e5 {[%clk 0:02:46]} 20. dxe5 {[%clk 0:01:49]}  Nxe5 {[%clk 0:02:45]} 21. Rfd1 {[%clk 0:01:36]}  Kf8 {[%clk 0:02:44]} 22. Rd4 {[%clk 0:01:34]}  g6 {[%clk 0:02:44]} 23. Rad1 {[%clk 0:01:32]}  h5 {[%clk 0:02:44]} 24. Be2 {[%clk 0:01:31]}  Ne4 {[%clk 0:02:43]} 25. Bf3 {[%clk 0:01:25]}  Nxf3+ {[%clk 0:02:43]} 26. gxf3 {[%clk 0:01:25]}  Ng5 {[%clk 0:02:43]} 27. Kg2 {[%clk 0:01:25]}  Ne6 {[%clk 0:02:44]} 28. R4d2 {[%clk 0:01:23]}  f5 {[%clk 0:02:44]} 29. f4 {[%clk 0:01:23]}  h4 {[%clk 0:02:43]} 30. Kf3 {[%clk 0:01:22]}  Kf7 {[%clk 0:02:44]} 31. Rg1 {[%clk 0:01:22]}  Kf6 {[%clk 0:02:44]} 32. Rdd1 {[%clk 0:01:15]}  g5 {[%clk 0:02:44]} 33. fxg5+ {[%clk 0:00:58]}  Nxg5+ {[%clk 0:02:44]} 34. Ke2 {[%clk 0:00:50]}  Nxh3 {[%clk 0:02:44]} 35. Rh1 {[%clk 0:00:50]}  Nf4+ {[%clk 0:02:45]} 36. Kf3 {[%clk 0:00:47]}  Ng6 {[%clk 0:02:45]} 37. Rdg1 {[%clk 0:00:41]}  Re4 {[%clk 0:02:44]} 38. Rg2 {[%clk 0:00:34]}  Rxb4 {[%clk 0:02:34]} 39. b3 {[%clk 0:00:21]}  Rb5 {[%clk 0:02:28]} 40. Ra1 {[%clk 0:00:22]}  Rxc5 {[%clk 0:02:27]} 41. b4 {[%clk 0:00:19]}  Rc2 {[%clk 0:02:14]} 42. Rgg1 {[%clk 0:00:12]}  Ne5+ {[%clk 0:02:14]} 43. Kg2 {[%clk 0:00:11]}  Ng4 {[%clk 0:02:11]} 44. Kh3 {[%clk 0:00:09]}  Nxf2+ {[%clk 0:02:08]} 45. Kxh4 {[%clk 0:00:08]}  Rh7+ {[%clk 0:02:08]} 46. Kg3 {[%clk 0:00:08]}  Ne4+ {[%clk 0:02:08]} 47. Kf4 {[%clk 0:00:04]}  Rf2# {[%clk 0:02:08]} 0-1


[Site "https://www.chess.com"]

[Event "Titled Tuesday Blitz March 28 Late 2023"]
[White "koncheto"]
[Black "Feng, Eric"]
[BlackFideId "30952590"]
[WhiteElo "2479"]
[BlackElo "1785"]
[Result "0-1"]
[Round "08"]
[TimeControl "180+2"]
[Date "2023.03.28"]
[WhiteClock "0:02:11"]
[BlackClock "0:01:59"]

1. e4 {[%clk 0:03:00]}  c6 {[%clk 0:02:53]} 2. d4 {[%clk 0:03:00]}  d5 {[%clk 0:02:53]} 3. Nc3 {[%clk 0:03:01]}  dxe4 {[%clk 0:02:53]} 4. Nxe4 {[%clk 0:03:02]}  Bf5 {[%clk 0:02:54]} 5. Ng3 {[%clk 0:03:02]}  Bg6 {[%clk 0:02:55]} 6. Nf3 {[%clk 0:03:03]}  Nd7 {[%clk 0:02:55]} 7. h4 {[%clk 0:03:03]}  h6 {[%clk 0:02:55]} 8. h5 {[%clk 0:03:04]}  Bh7 {[%clk 0:02:56]} 9. Bd3 {[%clk 0:03:05]}  Bxd3 {[%clk 0:02:57]} 10. Qxd3 {[%clk 0:03:05]}  e6 {[%clk 0:02:58]} 11. Bd2 {[%clk 0:03:06]}  Ngf6 {[%clk 0:02:58]} 12. O-O-O {[%clk 0:03:07]}  a5 {[%clk 0:02:59]} 13. c4 {[%clk 0:02:59]}  Bb4 {[%clk 0:02:57]} 14. Bf4 {[%clk 0:02:52]}  b5 {[%clk 0:02:53]} 15. Ne4 {[%clk 0:02:48]}  Nxe4 {[%clk 0:02:51]} 16. Qxe4 {[%clk 0:02:49]}  bxc4 {[%clk 0:02:52]} 17. Qxc6 {[%clk 0:02:48]}  Rc8 {[%clk 0:02:51]} 18. Qe4 {[%clk 0:02:47]}  c3 {[%clk 0:02:50]} 19. a3 {[%clk 0:02:28]}  cxb2+ {[%clk 0:02:44]} 20. Kxb2 {[%clk 0:02:29]}  Bc3+ {[%clk 0:02:24]} 21. Ka2 {[%clk 0:02:28]}  Nf6 {[%clk 0:02:24]} 22. Qb7 {[%clk 0:02:22]}  O-O {[%clk 0:02:24]} 23. g4 {[%clk 0:02:19]}  Nd5 {[%clk 0:02:24]} 24. Be5 {[%clk 0:02:15]}  Nc7 {[%clk 0:02:00]} 25. g5 {[%clk 0:02:13]}  Rb8 {[%clk 0:01:59]} 26. Qxc7 {[%clk 0:02:11]}  Qd5+ {[%clk 0:01:59]} 0-1


[Site "https://www.chess.com"]

[Event "Titled Tuesday Blitz March 28 Late 2023"]
[White "Fiorito, Francisco"]
[Black "Dudzinski, Pawel"]
[WhiteFideId "180165"]
[BlackFideId "1117890"]
[WhiteElo "2341"]
[BlackElo "2099"]
[Result "0-1"]
[Round "08"]
[TimeControl "180+2"]
[Date "2023.03.28"]
[WhiteClock "0:00:12"]
[BlackClock "0:00:12"]

1. d4 {[%clk 0:03:00]}  d5 {[%clk 0:02:56]} 2. Nc3 {[%clk 0:02:59]}  c6 {[%clk 0:02:55]} 3. Bf4 {[%clk 0:02:59]}  g6 {[%clk 0:02:53]} 4. e3 {[%clk 0:02:59]}  Bg7 {[%clk 0:02:53]} 5. Be2 {[%clk 0:02:59]}  Nh6 {[%clk 0:02:51]} 6. Nf3 {[%clk 0:02:58]}  f6 {[%clk 0:02:51]} 7. h4 {[%clk 0:02:58]}  Nf7 {[%clk 0:02:50]} 8. e4 {[%clk 0:02:56]}  e5 {[%clk 0:02:49]} 9. Be3 {[%clk 0:02:48]}  dxe4 {[%clk 0:02:39]} 10. Nxe4 {[%clk 0:02:47]}  f5 {[%clk 0:02:39]} 11. Neg5 {[%clk 0:02:46]}  Nxg5 {[%clk 0:02:31]} 12. Bxg5 {[%clk 0:02:47]}  Qa5+ {[%clk 0:02:31]} 13. c3 {[%clk 0:02:45]}  h6 {[%clk 0:02:22]} 14. Bc1 {[%clk 0:02:31]}  Nd7 {[%clk 0:02:07]} 15. dxe5 {[%clk 0:02:27]}  Nxe5 {[%clk 0:02:08]} 16. Nd4 {[%clk 0:02:24]}  O-O {[%clk 0:02:01]} 17. Bf4 {[%clk 0:02:17]}  Kh7 {[%clk 0:01:53]} 18. O-O {[%clk 0:02:15]}  Qd8 {[%clk 0:01:43]} 19. g3 {[%clk 0:02:02]}  g5 {[%clk 0:01:09]} 20. hxg5 {[%clk 0:01:57]}  hxg5 {[%clk 0:01:10]} 21. Bxe5 {[%clk 0:01:49]}  Bxe5 {[%clk 0:01:11]} 22. Nf3 {[%clk 0:01:50]}  Qxd1 {[%clk 0:01:04]} 23. Raxd1 {[%clk 0:01:49]}  Bf6 {[%clk 0:01:04]} 24. Bd3 {[%clk 0:01:48]}  Kg7 {[%clk 0:01:01]} 25. Rfe1 {[%clk 0:01:47]}  Rd8 {[%clk 0:01:00]} 26. Bc4 {[%clk 0:01:45]}  Rxd1 {[%clk 0:00:55]} 27. Rxd1 {[%clk 0:01:46]}  f4 {[%clk 0:00:51]} 28. gxf4 {[%clk 0:01:43]}  gxf4 {[%clk 0:00:52]} 29. Nd4 {[%clk 0:01:43]}  Bg4 {[%clk 0:00:47]} 30. Ne6+ {[%clk 0:01:43]}  Bxe6 {[%clk 0:00:46]} 31. Bxe6 {[%clk 0:01:42]}  Rd8 {[%clk 0:00:43]} 32. Re1 {[%clk 0:01:03]}  Rd2 {[%clk 0:00:41]} 33. Re4 {[%clk 0:01:03]}  Bg5 {[%clk 0:00:37]} 34. Rb4 {[%clk 0:01:02]}  b6 {[%clk 0:00:37]} 35. Bg4 {[%clk 0:00:46]}  c5 {[%clk 0:00:27]} 36. Rb5 {[%clk 0:00:26]}  Bh4 {[%clk 0:00:28]} 37. f3 {[%clk 0:00:26]}  Kf6 {[%clk 0:00:26]} 38. a4 {[%clk 0:00:24]}  Bf2+ {[%clk 0:00:24]} 39. Kf1 {[%clk 0:00:24]}  Be3 {[%clk 0:00:10]} 40. b4 {[%clk 0:00:24]}  cxb4 {[%clk 0:00:10]} 41. cxb4 {[%clk 0:00:25]}  Rf2+ {[%clk 0:00:09]} 42. Ke1 {[%clk 0:00:25]}  Rb2 {[%clk 0:00:10]} 43. Rf5+ {[%clk 0:00:24]}  Kg6 {[%clk 0:00:10]} 44. b5 {[%clk 0:00:18]}  Ra2 {[%clk 0:00:10]} 45. Rd5 {[%clk 0:00:18]}  Rxa4 {[%clk 0:00:09]} 46. Rd6+ {[%clk 0:00:19]}  Kg5 {[%clk 0:00:09]} 47. Rd5+ {[%clk 0:00:20]}  Kh4 {[%clk 0:00:10]} 48. Kd1 {[%clk 0:00:18]}  Ra2 {[%clk 0:00:09]} 49. Be6 {[%clk 0:00:14]}  Kg3 {[%clk 0:00:08]} 50. Bg4 {[%clk 0:00:13]}  Kf2 {[%clk 0:00:08]} 51. Rd7 {[%clk 0:00:14]}  Rb2 {[%clk 0:00:06]} 52. Rd5 {[%clk 0:00:12]}  Bc5 {[%clk 0:00:07]} 53. Kc1 {[%clk 0:00:12]}  Rxb5 {[%clk 0:00:07]} 54. Rd2+ {[%clk 0:00:08]}  Kg3 {[%clk 0:00:06]} 55. Kc2 {[%clk 0:00:07]}  Be3 {[%clk 0:00:06]} 56. Rd1 {[%clk 0:00:08]}  Rc5+ {[%clk 0:00:06]} 57. Kb3 {[%clk 0:00:09]}  Rc1 {[%clk 0:00:06]} 58. Rd7 {[%clk 0:00:08]}  a5 {[%clk 0:00:04]} 59. Rg7 {[%clk 0:00:08]}  Re1 {[%clk 0:00:02]} 60. Bh5+ {[%clk 0:00:06]}  Kf2 {[%clk 0:00:03]} 61. Rg5 {[%clk 0:00:06]}  Rh1 {[%clk 0:00:02]} 62. Bg4 {[%clk 0:00:06]}  Rg1 {[%clk 0:00:02]} 63. Ka4 {[%clk 0:00:06]}  Rg3 {[%clk 0:00:03]} 64. Kb3 {[%clk 0:00:04]}  Rxf3 {[%clk 0:00:04]} 65. Bxf3 {[%clk 0:00:04]}  Kxf3 {[%clk 0:00:05]} 66. Kc2 {[%clk 0:00:05]}  Ke2 {[%clk 0:00:05]} 67. Rg2+ {[%clk 0:00:04]}  Bf2 {[%clk 0:00:06]} 68. Kc3 {[%clk 0:00:04]}  f3 {[%clk 0:00:06]} 69. Rh2 {[%clk 0:00:04]}  Kf1 {[%clk 0:00:06]} 70. Kd3 {[%clk 0:00:05]}  Kg1 {[%clk 0:00:06]} 71. Rh8 {[%clk 0:00:05]}  Bc5 {[%clk 0:00:06]} 72. Rg8+ {[%clk 0:00:05]}  Kf2 {[%clk 0:00:06]} 73. Ke4 {[%clk 0:00:04]}  a4 {[%clk 0:00:07]} 74. Rg4 {[%clk 0:00:03]}  Ke2 {[%clk 0:00:06]} 75. Rh4 {[%clk 0:00:01]}  f2 {[%clk 0:00:07]} 76. Rh2 {[%clk 0:00:02]}  Ke1 {[%clk 0:00:07]} 77. Rh1+ {[%clk 0:00:02]}  f1=Q {[%clk 0:00:07]} 78. Rxf1+ {[%clk 0:00:03]}  Kxf1 {[%clk 0:00:08]} 79. Kd3 {[%clk 0:00:04]}  a3 {[%clk 0:00:08]} 80. Kc2 {[%clk 0:00:05]}  Kf2 {[%clk 0:00:09]} 81. Kb3 {[%clk 0:00:05]}  Kf3 {[%clk 0:00:10]} 82. Ka2 {[%clk 0:00:06]}  Ke4 {[%clk 0:00:10]} 83. Kb3 {[%clk 0:00:07]}  Kd5 {[%clk 0:00:11]} 84. Ka2 {[%clk 0:00:08]}  Kc4 {[%clk 0:00:12]} 85. Kb1 {[%clk 0:00:08]}  Kb4 {[%clk 0:00:13]} 86. Ka1 {[%clk 0:00:09]}  Kb3 {[%clk 0:00:13]} 87. Kb1 {[%clk 0:00:09]}  a2+ {[%clk 0:00:13]} 88. Kc1 {[%clk 0:00:10]}  a1=Q+ {[%clk 0:00:13]} 89. Kd2 {[%clk 0:00:11]}  Qe5 {[%clk 0:00:13]} 90. Kd3 {[%clk 0:00:12]}  Qe3# {[%clk 0:00:12]} 0-1


[Site "https://www.chess.com"]

[Event "Titled Tuesday Blitz March 28 Late 2023"]
[White "Freitag, Manfred"]
[Black "Foerster-Yialamas, Lucas"]
[WhiteFideId "1602004"]
[BlackFideId "30901774"]
[WhiteElo "2275"]
[BlackElo "2067"]
[Result "1/2-1/2"]
[Round "08"]
[TimeControl "180+2"]
[Date "2023.03.28"]
[WhiteClock "0:01:20"]
[BlackClock "0:00:04"]

1. e4 {[%clk 0:03:00]}  c5 {[%clk 0:02:56]} 2. Nf3 {[%clk 0:03:00]}  Nc6 {[%clk 0:02:55]} 3. d4 {[%clk 0:03:01]}  cxd4 {[%clk 0:02:56]} 4. Nxd4 {[%clk 0:03:01]}  g6 {[%clk 0:02:57]} 5. c4 {[%clk 0:03:00]}  Bg7 {[%clk 0:02:55]} 6. Be3 {[%clk 0:03:00]}  Nf6 {[%clk 0:02:55]} 7. Nc3 {[%clk 0:03:00]}  d6 {[%clk 0:02:46]} 8. Be2 {[%clk 0:03:00]}  O-O {[%clk 0:02:46]} 9. O-O {[%clk 0:03:00]}  a5 {[%clk 0:02:40]} 10. b3 {[%clk 0:02:56]}  Nxd4 {[%clk 0:02:33]} 11. Bxd4 {[%clk 0:02:56]}  b6 {[%clk 0:02:27]} 12. Rc1 {[%clk 0:02:55]}  Bb7 {[%clk 0:02:20]} 13. f3 {[%clk 0:02:55]}  Nd7 {[%clk 0:02:12]} 14. Be3 {[%clk 0:02:55]}  Nc5 {[%clk 0:02:10]} 15. Qd2 {[%clk 0:02:55]}  f5 {[%clk 0:02:01]} 16. exf5 {[%clk 0:02:55]}  gxf5 {[%clk 0:02:00]} 17. Rfd1 {[%clk 0:02:54]}  Qd7 {[%clk 0:01:53]} 18. Bf1 {[%clk 0:02:45]}  Kh8 {[%clk 0:01:44]} 19. Rb1 {[%clk 0:02:44]}  Rg8 {[%clk 0:01:43]} 20. Kh1 {[%clk 0:02:40]}  Raf8 {[%clk 0:01:40]} 21. a3 {[%clk 0:02:39]}  Be5 {[%clk 0:01:25]} 22. b4 {[%clk 0:02:36]}  axb4 {[%clk 0:01:22]} 23. axb4 {[%clk 0:02:37]}  Na4 {[%clk 0:01:06]} 24. Nxa4 {[%clk 0:02:37]}  Qxa4 {[%clk 0:01:07]} 25. Bxb6 {[%clk 0:02:37]}  Qa8 {[%clk 0:00:57]} 26. Bd4 {[%clk 0:02:21]}  Rg6 {[%clk 0:00:50]} 27. Bxe5+ {[%clk 0:02:17]}  dxe5 {[%clk 0:00:51]} 28. Qe3 {[%clk 0:02:17]}  e4 {[%clk 0:00:45]} 29. f4 {[%clk 0:02:17]}  e5 {[%clk 0:00:42]} 30. b5 {[%clk 0:02:11]}  exf4 {[%clk 0:00:39]} 31. Qxf4 {[%clk 0:02:12]}  e3 {[%clk 0:00:34]} 32. Rb2 {[%clk 0:02:12]}  Rfg8 {[%clk 0:00:33]} 33. Qd4+ {[%clk 0:01:57]}  R8g7 {[%clk 0:00:20]} 34. Qd8+ {[%clk 0:01:55]}  Qxd8 {[%clk 0:00:19]} 35. Rxd8+ {[%clk 0:01:56]}  Rg8 {[%clk 0:00:20]} 36. Rxg8+ {[%clk 0:01:55]}  Kxg8 {[%clk 0:00:20]} 37. Kg1 {[%clk 0:01:52]}  f4 {[%clk 0:00:20]} 38. c5 {[%clk 0:01:47]}  f3 {[%clk 0:00:12]} 39. c6 {[%clk 0:01:43]}  e2 {[%clk 0:00:03]} 40. Bxe2 {[%clk 0:01:36]}  fxe2 {[%clk 0:00:03]} 41. Rxe2 {[%clk 0:01:35]}  Bxc6 {[%clk 0:00:04]} 42. bxc6 {[%clk 0:01:35]}  Rxc6 {[%clk 0:00:05]} 43. h3 {[%clk 0:01:35]}  Kg7 {[%clk 0:00:04]} 44. Kf2 {[%clk 0:01:36]}  Kg6 {[%clk 0:00:03]} 45. Kg3 {[%clk 0:01:36]}  Rf6 {[%clk 0:00:03]} 46. Re4 {[%clk 0:01:34]}  Kg7 {[%clk 0:00:04]} 47. Kh4 {[%clk 0:01:35]}  Rh6+ {[%clk 0:00:03]} 48. Kg4 {[%clk 0:01:34]}  Rg6+ {[%clk 0:00:03]} 49. Kf3 {[%clk 0:01:35]}  Rf6+ {[%clk 0:00:04]} 50. Rf4 {[%clk 0:01:35]}  Ra6 {[%clk 0:00:04]} 51. h4 {[%clk 0:01:35]}  h5 {[%clk 0:00:04]} 52. Rf5 {[%clk 0:01:35]}  Kg6 {[%clk 0:00:04]} 53. Rg5+ {[%clk 0:01:35]}  Kh6 {[%clk 0:00:05]} 54. Re5 {[%clk 0:01:35]}  Ra3+ {[%clk 0:00:05]} 55. Kf4 {[%clk 0:01:35]}  Ra4+ {[%clk 0:00:05]} 56. Re4 {[%clk 0:01:36]}  Ra6 {[%clk 0:00:05]} 57. Kf5 {[%clk 0:01:34]}  Ra2 {[%clk 0:00:05]} 58. Re6+ {[%clk 0:01:34]}  Kh7 {[%clk 0:00:04]} 59. g3 {[%clk 0:01:33]}  Rg2 {[%clk 0:00:03]} 60. Kf4 {[%clk 0:01:33]}  Rf2+ {[%clk 0:00:04]} 61. Kg5 {[%clk 0:01:34]}  Rf3 {[%clk 0:00:01]} 62. Re7+ {[%clk 0:01:32]}  Kg8 {[%clk 0:00:02]} 63. g4 {[%clk 0:01:27]}  hxg4 {[%clk 0:00:03]} 64. Kg6 {[%clk 0:01:27]}  Rf8 {[%clk 0:00:02]} 65. Rg7+ {[%clk 0:01:27]}  Kh8 {[%clk 0:00:02]} 66. Rh7+ {[%clk 0:01:27]}  Kg8 {[%clk 0:00:03]} 67. Rh5 {[%clk 0:01:25]}  Ra8 {[%clk 0:00:03]} 68. Rg5 {[%clk 0:01:25]}  Ra6+ {[%clk 0:00:02]} 69. Kf5+ {[%clk 0:01:24]}  Kh8 {[%clk 0:00:03]} 70. Kxg4 {[%clk 0:01:25]}  Ra8 {[%clk 0:00:03]} 71. Kh5 {[%clk 0:01:25]}  Rg8 {[%clk 0:00:03]} 72. Kh6 {[%clk 0:01:24]}  Ra8 {[%clk 0:00:03]} 73. Rg6 {[%clk 0:01:22]}  Rg8 {[%clk 0:00:02]} 74. h5 {[%clk 0:01:21]}  Ra8 {[%clk 0:00:02]} 75. Rd6 {[%clk 0:01:20]}  Rb8 {[%clk 0:00:03]} 76. Kg6 {[%clk 0:01:20]}  Rc8 {[%clk 0:00:03]} 77. h6 {[%clk 0:01:21]}  Rb8 {[%clk 0:00:04]} 78. Rd7 {[%clk 0:01:20]}  Ra8 {[%clk 0:00:04]} 79. Rh7+ {[%clk 0:01:19]}  Kg8 {[%clk 0:00:04]} 80. Rg7+ {[%clk 0:01:20]}  Kh8 {[%clk 0:00:05]} 81. Rf7 {[%clk 0:01:20]}  Kg8 {[%clk 0:00:04]} 82. h7+ {[%clk 0:01:19]}  Kh8 {[%clk 0:00:05]} 83. Rf6 {[%clk 0:01:19]}  Rb8 {[%clk 0:00:04]} 84. Kh6 {[%clk 0:01:19]}  Rb6 {[%clk 0:00:04]} 85. Rg6 {[%clk 0:01:20]}  Rxg6+ {[%clk 0:00:04]} 86. Kxg6 {[%clk 0:01:20]} 1/2-1/2


[Site "https://www.chess.com"]

[Event "Titled Tuesday Blitz March 28 Late 2023"]
[White "Gatterer, Florian"]
[Black "Sokac, Marko"]
[WhiteFideId "811688"]
[BlackFideId "14531356"]
[WhiteElo "2221"]
[BlackElo "2355"]
[Result "0-1"]
[Round "08"]
[TimeControl "180+2"]
[Date "2023.03.28"]
[WhiteClock "0:01:59"]
[BlackClock "0:02:36"]

1. b3 {[%clk 0:03:00]}  e5 {[%clk 0:02:59]} 2. Bb2 {[%clk 0:03:00]}  Nc6 {[%clk 0:03:00]} 3. e3 {[%clk 0:03:01]}  Nge7 {[%clk 0:03:01]} 4. Nf3 {[%clk 0:03:00]}  e4 {[%clk 0:03:01]} 5. Nd4 {[%clk 0:03:00]}  Nxd4 {[%clk 0:03:01]} 6. Bxd4 {[%clk 0:02:59]}  Nf5 {[%clk 0:03:02]} 7. Bb2 {[%clk 0:02:56]}  Qg5 {[%clk 0:03:02]} 8. d3 {[%clk 0:02:49]}  d5 {[%clk 0:03:02]} 9. dxe4 {[%clk 0:02:40]}  dxe4 {[%clk 0:03:02]} 10. Qd5 {[%clk 0:02:38]}  Qe7 {[%clk 0:02:47]} 11. Nd2 {[%clk 0:02:29]}  Nd6 {[%clk 0:02:43]} 12. Nc4 {[%clk 0:02:21]}  f5 {[%clk 0:02:35]} 13. Nxd6+ {[%clk 0:02:15]}  Qxd6 {[%clk 0:02:36]} 14. Qxd6 {[%clk 0:02:15]}  Bxd6 {[%clk 0:02:36]} 15. Bxg7 {[%clk 0:02:10]}  Rg8 {[%clk 0:02:36]} 16. Bc3 {[%clk 0:02:04]}  Be6 {[%clk 0:02:36]} 17. g3 {[%clk 0:01:59]}  O-O-O {[%clk 0:02:36]} 18. O-O-O {[%clk 0:01:59]}  Ba3+ {[%clk 0:02:36]} 0-1


[Site "https://www.chess.com"]

[Event "Titled Tuesday Blitz March 28 Late 2023"]
[White "Poliakova, Varvara"]
[Black "Kielinkei"]
[WhiteFideId "13518313"]
[WhiteElo "2075"]
[BlackElo "2411"]
[Result "1/2-1/2"]
[Round "08"]
[TimeControl "180+2"]
[Date "2023.03.28"]
[WhiteClock "0:01:38"]
[BlackClock "0:00:20"]

1. e4 {[%clk 0:02:53]}  c5 {[%clk 0:03:00]} 2. Nf3 {[%clk 0:02:49]}  e6 {[%clk 0:03:00]} 3. d4 {[%clk 0:02:50]}  cxd4 {[%clk 0:03:01]} 4. Nxd4 {[%clk 0:02:51]}  Nc6 {[%clk 0:03:01]} 5. Nc3 {[%clk 0:02:49]}  Qc7 {[%clk 0:03:00]} 6. Qd3 {[%clk 0:02:49]}  Nf6 {[%clk 0:02:45]} 7. Nxc6 {[%clk 0:02:49]}  bxc6 {[%clk 0:02:44]} 8. Qg3 {[%clk 0:02:49]}  Qxg3 {[%clk 0:02:44]} 9. hxg3 {[%clk 0:02:50]}  d5 {[%clk 0:02:42]} 10. Bd3 {[%clk 0:02:47]}  Bc5 {[%clk 0:02:34]} 11. f3 {[%clk 0:02:45]}  a5 {[%clk 0:02:31]} 12. g4 {[%clk 0:02:45]}  Ba6 {[%clk 0:02:22]} 13. Bf4 {[%clk 0:02:39]}  Bxd3 {[%clk 0:02:18]} 14. cxd3 {[%clk 0:02:40]}  Nd7 {[%clk 0:02:16]} 15. O-O-O {[%clk 0:02:39]}  f6 {[%clk 0:02:08]} 16. d4 {[%clk 0:02:37]}  Ba7 {[%clk 0:02:02]} 17. e5 {[%clk 0:02:38]}  Kf7 {[%clk 0:02:01]} 18. exf6 {[%clk 0:02:35]}  gxf6 {[%clk 0:01:59]} 19. g5 {[%clk 0:02:35]}  e5 {[%clk 0:01:55]} 20. dxe5 {[%clk 0:02:33]}  fxe5 {[%clk 0:01:53]} 21. Bd2 {[%clk 0:02:34]}  Nc5 {[%clk 0:01:44]} 22. Rh6 {[%clk 0:02:32]}  Ne6 {[%clk 0:01:37]} 23. Rdh1 {[%clk 0:02:31]}  Rhg8 {[%clk 0:01:23]} 24. Rf6+ {[%clk 0:02:28]}  Ke7 {[%clk 0:01:20]} 25. Rxh7+ {[%clk 0:02:28]}  Kd6 {[%clk 0:01:16]} 26. Rhh6 {[%clk 0:02:27]}  Rae8 {[%clk 0:01:15]} 27. f4 {[%clk 0:02:22]}  exf4 {[%clk 0:01:12]} 28. Bxf4+ {[%clk 0:02:23]}  Kd7 {[%clk 0:01:11]} 29. g3 {[%clk 0:02:21]}  Bd4 {[%clk 0:01:06]} 30. Rf7+ {[%clk 0:02:20]}  Re7 {[%clk 0:01:06]} 31. Rxe7+ {[%clk 0:02:18]}  Kxe7 {[%clk 0:01:07]} 32. Ne2 {[%clk 0:02:17]}  Bg7 {[%clk 0:00:57]} 33. Rh7 {[%clk 0:02:16]}  Nf8 {[%clk 0:00:57]} 34. Rh1 {[%clk 0:02:15]}  Ng6 {[%clk 0:00:55]} 35. Kc2 {[%clk 0:02:13]}  c5 {[%clk 0:00:45]} 36. Nc3 {[%clk 0:02:09]}  d4 {[%clk 0:00:44]} 37. Nd5+ {[%clk 0:02:07]}  Ke6 {[%clk 0:00:44]} 38. Nc7+ {[%clk 0:02:05]}  Kf5 {[%clk 0:00:44]} 39. Bd2 {[%clk 0:02:01]}  Be5 {[%clk 0:00:42]} 40. Rf1+ {[%clk 0:02:01]}  Kg4 {[%clk 0:00:41]} 41. Nd5 {[%clk 0:01:58]}  Kxg3 {[%clk 0:00:39]} 42. Nf6 {[%clk 0:01:58]}  Rf8 {[%clk 0:00:36]} 43. Ne4+ {[%clk 0:01:57]}  Kg4 {[%clk 0:00:33]} 44. Rxf8 {[%clk 0:01:58]}  Nxf8 {[%clk 0:00:34]} 45. Nxc5 {[%clk 0:01:55]}  Kf5 {[%clk 0:00:32]} 46. Kd3 {[%clk 0:01:55]}  Nh7 {[%clk 0:00:30]} 47. a4 {[%clk 0:01:55]}  Nxg5 {[%clk 0:00:27]} 48. Bxg5 {[%clk 0:01:56]}  Kxg5 {[%clk 0:00:28]} 49. Nb3 {[%clk 0:01:51]}  Kf5 {[%clk 0:00:27]} 50. Nxd4+ {[%clk 0:01:51]}  Kf6 {[%clk 0:00:25]} 51. Nc6 {[%clk 0:01:50]}  Bxb2 {[%clk 0:00:24]} 52. Kc4 {[%clk 0:01:41]}  Ke6 {[%clk 0:00:23]} 53. Nxa5 {[%clk 0:01:40]}  Kd6 {[%clk 0:00:23]} 54. Kb5 {[%clk 0:01:40]}  Kc7 {[%clk 0:00:22]} 55. Nc6 {[%clk 0:01:40]}  Bc3 {[%clk 0:00:20]} 56. a5 {[%clk 0:01:38]}  Bxa5 {[%clk 0:00:20]} 1/2-1/2


[Site "https://www.chess.com"]

[Event "Titled Tuesday Blitz March 28 Late 2023"]
[White "Romanchuk, Viktor"]
[Black "ArtemDyachuk"]
[WhiteFideId "14109271"]
[WhiteElo "2242"]
[BlackElo "2401"]
[Result "0-1"]
[Round "08"]
[TimeControl "180+2"]
[Date "2023.03.28"]
[WhiteClock "0:01:27"]
[BlackClock "0:01:43"]

1. d4 {[%clk 0:03:00]}  Nf6 {[%clk 0:02:54]} 2. c4 {[%clk 0:03:00]}  c5 {[%clk 0:02:51]} 3. Nf3 {[%clk 0:03:00]}  g6 {[%clk 0:02:44]} 4. Nc3 {[%clk 0:02:59]}  Bg7 {[%clk 0:02:41]} 5. g3 {[%clk 0:02:59]}  O-O {[%clk 0:02:39]} 6. Bg2 {[%clk 0:02:59]}  cxd4 {[%clk 0:02:38]} 7. Nxd4 {[%clk 0:03:00]}  Qc7 {[%clk 0:02:34]} 8. b3 {[%clk 0:02:45]}  d5 {[%clk 0:02:25]} 9. Ncb5 {[%clk 0:01:51]}  Qa5+ {[%clk 0:01:55]} 10. Bd2 {[%clk 0:01:49]}  Qd8 {[%clk 0:01:55]} 11. O-O {[%clk 0:01:41]}  dxc4 {[%clk 0:01:50]} 12. bxc4 {[%clk 0:01:42]}  a6 {[%clk 0:01:48]} 13. Bb4 {[%clk 0:01:31]}  axb5 {[%clk 0:01:45]} 14. Nxb5 {[%clk 0:01:27]}  Nc6 {[%clk 0:01:43]} 0-1


[Site "https://www.chess.com"]

[Event "Titled Tuesday Blitz March 28 Late 2023"]
[White "Melikhov, Evgeny V."]
[Black "Darini, Pouria"]
[WhiteFideId "4122046"]
[BlackFideId "12502200"]
[WhiteElo "2158"]
[BlackElo "2482"]
[Result "1/2-1/2"]
[Round "08"]
[TimeControl "180+2"]
[Date "2023.03.28"]
[WhiteClock "0:02:47"]
[BlackClock "0:02:07"]

1. d4 {[%clk 0:03:00]}  Nf6 {[%clk 0:02:59]} 2. c4 {[%clk 0:03:01]}  e6 {[%clk 0:03:00]} 3. Nc3 {[%clk 0:03:01]}  Bb4 {[%clk 0:03:00]} 4. Qc2 {[%clk 0:03:01]}  d5 {[%clk 0:02:59]} 5. cxd5 {[%clk 0:03:01]}  exd5 {[%clk 0:02:59]} 6. Bg5 {[%clk 0:03:01]}  h6 {[%clk 0:03:00]} 7. Bxf6 {[%clk 0:03:00]}  Qxf6 {[%clk 0:03:00]} 8. a3 {[%clk 0:03:01]}  Bxc3+ {[%clk 0:02:58]} 9. Qxc3 {[%clk 0:03:01]}  c6 {[%clk 0:02:58]} 10. e3 {[%clk 0:03:01]}  Bf5 {[%clk 0:02:58]} 11. Nf3 {[%clk 0:03:01]}  Nd7 {[%clk 0:02:59]} 12. Be2 {[%clk 0:03:01]}  a5 {[%clk 0:02:59]} 13. O-O {[%clk 0:03:01]}  O-O {[%clk 0:02:59]} 14. b4 {[%clk 0:02:59]}  axb4 {[%clk 0:02:56]} 15. axb4 {[%clk 0:02:59]}  Bg4 {[%clk 0:02:40]} 16. Rxa8 {[%clk 0:02:47]}  Rxa8 {[%clk 0:02:39]} 17. Ra1 {[%clk 0:02:47]}  Rxa1+ {[%clk 0:02:37]} 18. Qxa1 {[%clk 0:02:47]}  Qd8 {[%clk 0:02:07]} 1/2-1/2


[Site "https://www.chess.com"]